[Event "Early-Titled-Tuesday-Blitz-September-26-2023"]
[Site "Chess.com"]
[Date "2023.09.26"]
[Round "9"]
[White "Hasangatin_Ramil"]
[Black "MatthewG-p4p"]
[Result "1-0"]
[WhiteElo "2729"]
[BlackElo "2798"]
[TimeControl "180+1"]
[EndTime "9:46:28 PDT"]
[Termination "Hasangatin_Ramil won by resignation"]

1. e4 {[%clk 0:03:00.9]} 1... e6 {[%clk 0:02:57.9]} 2. d3 {[%clk 0:03:00.6]}
2... d5 {[%clk 0:02:58.5]} 3. Qe2 {[%clk 0:03:00.7]} 3... Nf6 {[%clk 0:02:56]}
4. g3 {[%clk 0:03:00.2]} 4... dxe4 {[%clk 0:02:35.5]} 5. dxe4 {[%clk 0:02:59.9]}
5... e5 {[%clk 0:02:35.5]} 6. Nf3 {[%clk 0:03:00.1]} 6... Nc6 {[%clk 0:02:35.6]}
7. Bg2 {[%clk 0:03:00.5]} 7... Bc5 {[%clk 0:02:35.8]} 8. O-O {[%clk 0:03:00.3]}
8... O-O {[%clk 0:02:36.4]} 9. c3 {[%clk 0:02:44.2]} 9... a5 {[%clk 0:02:36]}
10. Nh4 {[%clk 0:02:44.1]} 10... Re8 {[%clk 0:02:27.4]} 11. Rd1 {[%clk
0:02:40.7]} 11... Qe7 {[%clk 0:02:25.9]} 12. h3 {[%clk 0:02:36.6]} 12... a4
{[%clk 0:02:22]} 13. Nd2 {[%clk 0:02:30.5]} 13... g6 {[%clk 0:02:14.4]} 14. Nf1
{[%clk 0:02:25.4]} 14... Nh5 {[%clk 0:02:06.6]} 15. Ne3 {[%clk 0:02:17.6]} 15...
Be6 {[%clk 0:01:59.2]} 16. Kh2 {[%clk 0:02:16.1]} 16... Rad8 {[%clk 0:01:03.8]}
17. Nd5 {[%clk 0:02:15.2]} 17... Bxd5 {[%clk 0:01:03.8]} 18. exd5 {[%clk
0:02:12.4]} 18... Nb8 {[%clk 0:01:02.8]} 19. b4 {[%clk 0:02:07.7]} 19... axb3
{[%clk 0:01:01.1]} 20. axb3 {[%clk 0:02:07.4]} 20... e4 {[%clk 0:01:00]} 21. Nf5
{[%clk 0:01:49.1]} 21... Qf6 {[%clk 0:00:54.3]} 22. Nh6+ {[%clk 0:01:42.9]}
22... Kg7 {[%clk 0:00:54.5]} 23. Ng4 {[%clk 0:01:37.9]} 23... Qf5 {[%clk
0:00:50.3]} 24. Bh6+ {[%clk 0:01:35.4]} 24... Kh8 {[%clk 0:00:48.7]} 25. b4
{[%clk 0:01:25.5]} 25... Bd6 {[%clk 0:00:47.2]} 26. c4 {[%clk 0:01:16.9]} 26...
Nd7 {[%clk 0:00:32.8]} 27. c5 {[%clk 0:01:16.3]} 27... Bf8 {[%clk 0:00:32.6]}
28. Ra7 {[%clk 0:01:04.8]} 28... Bxh6 {[%clk 0:00:20.4]} 29. Nxh6 {[%clk
0:01:05.7]} 29... Qf6 {[%clk 0:00:21.1]} 30. Rxb7 {[%clk 0:00:56.6]} 30... e3
{[%clk 0:00:16.7]} 31. Ng4 {[%clk 0:00:56.4]} 31... exf2 {[%clk 0:00:09.8]} 32.
Qxe8+ {[%clk 0:00:55.5]} 32... Rxe8 {[%clk 0:00:10.1]} 33. Nxf6 {[%clk
0:00:55.8]} 33... Nhxf6 {[%clk 0:00:09.2]} 34. Rf1 {[%clk 0:00:53.3]} 34... Re2
{[%clk 0:00:08.5]} 35. Rxc7 {[%clk 0:00:53.1]} 35... Ne5 {[%clk 0:00:09.1]} 36.
d6 {[%clk 0:00:44.1]} 36... Rd2 {[%clk 0:00:09.6]} 37. b5 {[%clk 0:00:43.3]}
37... Nfd7 {[%clk 0:00:03.6]} 38. c6 {[%clk 0:00:39.3]} 38... Nb6 {[%clk
0:00:02.8]} 39. d7 {[%clk 0:00:38.5]} 39... Kg7 {[%clk 0:00:03.5]} 40. Rxf2
{[%clk 0:00:25.3]} 40... Rxf2 {[%clk 0:00:02.5]} 41. d8=Q {[%clk 0:00:25.3]}
41... Nf3+ {[%clk 0:00:02.9]} 42. Kh1 {[%clk 0:00:25.3]} 42... Rd2 {[%clk
0:00:03.7]} 43. Qxd2 {[%clk 0:00:20.3]} 43... Nxd2 {[%clk 0:00:04.6]} 44. Rb7
{[%clk 0:00:19.5]} 44... Nc8 {[%clk 0:00:05.3]} 45. Bd5 {[%clk 0:00:18.3]} 45...
Kf6 {[%clk 0:00:05]} 46. c7 {[%clk 0:00:15.2]} 46... Ke5 {[%clk 0:00:05]} 47.
Rb8 {[%clk 0:00:14]} 47... Nd6 {[%clk 0:00:05.1]} 48. Bxf7 {[%clk 0:00:13.6]}
48... N2e4 {[%clk 0:00:03.6]} 49. Kg2 {[%clk 0:00:13]} 49... Nxg3 {[%clk
0:00:04.5]} 50. Kxg3 {[%clk 0:00:13]} 50... Kf6 {[%clk 0:00:05.4]} 51. c8=Q
{[%clk 0:00:12.9]} 51... Nxc8 {[%clk 0:00:06.3]} 52. Rxc8 {[%clk 0:00:13.8]}
52... Kxf7 {[%clk 0:00:07.2]} 53. Rc1 {[%clk 0:00:11.7]} 53... Kf6 {[%clk
0:00:08.1]} 54. b6 {[%clk 0:00:12.3]} 54... h5 {[%clk 0:00:09]} 55. b7 {[%clk
0:00:13.2]} 55... h4+ {[%clk 0:00:09.5]} 56. Kg2 {[%clk 0:00:12.9]} 56... g5
{[%clk 0:00:10.4]} 57. b8=Q {[%clk 0:00:12.8]} 57... g4 {[%clk 0:00:11.3]} 58.
Qb5 {[%clk 0:00:11.6]} 58... gxh3+ {[%clk 0:00:12.2]} 59. Kh1 {[%clk 0:00:11.5]}
1-0

[Event "Early-Titled-Tuesday-Blitz-September-26-2023"]
[Site "Chess.com"]
[Date "2023.09.26"]
[Round "9"]
[White "jjlai1111"]
[Black "Sinquefield"]
[Result "0-1"]
[WhiteElo "2375"]
[BlackElo "2556"]
[TimeControl "180+1"]
[EndTime "9:46:30 PDT"]
[Termination "Sinquefield won by checkmate"]

1. d4 {[%clk 0:02:57.3]} 1... Nf6 {[%clk 0:02:57.2]} 2. Nf3 {[%clk 0:02:57.9]}
2... d6 {[%clk 0:02:57.5]} 3. c4 {[%clk 0:02:57.2]} 3... Nbd7 {[%clk 0:02:57.9]}
4. g3 {[%clk 0:02:57.4]} 4... e5 {[%clk 0:02:58.4]} 5. Bg2 {[%clk 0:02:56.4]}
5... Be7 {[%clk 0:02:58.8]} 6. Nc3 {[%clk 0:02:56.5]} 6... O-O {[%clk
0:02:59.3]} 7. e4 {[%clk 0:02:55.8]} 7... c6 {[%clk 0:02:59.7]} 8. O-O {[%clk
0:02:56.2]} 8... a6 {[%clk 0:02:59.3]} 9. d5 {[%clk 0:02:49.8]} 9... cxd5 {[%clk
0:02:52.2]} 10. exd5 {[%clk 0:02:39]} 10... Ne8 {[%clk 0:02:49.2]} 11. Nd2
{[%clk 0:02:36.3]} 11... f5 {[%clk 0:02:49]} 12. b4 {[%clk 0:02:32]} 12... g5
{[%clk 0:02:45.1]} 13. Re1 {[%clk 0:02:15.4]} 13... Nef6 {[%clk 0:02:37.6]} 14.
Ba3 {[%clk 0:02:11]} 14... a5 {[%clk 0:02:35.6]} 15. Nb5 {[%clk 0:02:00.2]}
15... f4 {[%clk 0:02:24.5]} 16. bxa5 {[%clk 0:01:54.6]} 16... Ra6 {[%clk
0:02:22.7]} 17. Bb4 {[%clk 0:01:39.3]} 17... Rf7 {[%clk 0:02:22.4]} 18. Bh3
{[%clk 0:01:38.5]} 18... Nf8 {[%clk 0:02:18.7]} 19. Bxc8 {[%clk 0:01:24.7]}
19... Qxc8 {[%clk 0:02:19.6]} 20. Qe2 {[%clk 0:01:18.7]} 20... Qh3 {[%clk
0:02:08.9]} 21. Qf1 {[%clk 0:01:18.6]} 21... Qh5 {[%clk 0:02:04.9]} 22. Ne4
{[%clk 0:01:16.4]} 22... fxg3 {[%clk 0:01:25.4]} 23. hxg3 {[%clk 0:00:52.1]}
23... Ng6 {[%clk 0:01:11.7]} 24. Nbxd6 {[%clk 0:00:44.1]} 24... Ng4 {[%clk
0:00:40.3]} 25. Qg2 {[%clk 0:00:40.4]} 25... Bxd6 {[%clk 0:00:39.8]} 26. Bxd6
{[%clk 0:00:32.1]} 26... Rxd6 {[%clk 0:00:34.4]} 27. Nxd6 {[%clk 0:00:29.1]}
27... Rxf2 {[%clk 0:00:33.4]} 28. Qxf2 {[%clk 0:00:28.7]} 28... Nxf2 {[%clk
0:00:33.4]} 29. Kxf2 {[%clk 0:00:29.4]} 29... Qh2+ {[%clk 0:00:31]} 30. Kf3
{[%clk 0:00:27.4]} 30... h5 {[%clk 0:00:22.2]} 31. Nf5 {[%clk 0:00:13.1]} 31...
Qc2 {[%clk 0:00:17.5]} 32. Ne3 {[%clk 0:00:11.2]} 32... g4+ {[%clk 0:00:17]} 33.
Nxg4 {[%clk 0:00:10.5]} 33... hxg4+ {[%clk 0:00:17.2]} 34. Kxg4 {[%clk
0:00:09.3]} 34... Qxc4+ {[%clk 0:00:17.3]} 35. Kh3 {[%clk 0:00:09]} 35... Qxd5
{[%clk 0:00:16.2]} 36. Rad1 {[%clk 0:00:06.3]} 36... Qf3 {[%clk 0:00:15.8]} 37.
Kh2 {[%clk 0:00:03.1]} 37... Qf2+ {[%clk 0:00:14.8]} 38. Kh3 {[%clk 0:00:03.7]}
38... Qxa2 {[%clk 0:00:14.5]} 39. Rd8+ {[%clk 0:00:03.2]} 39... Kg7 {[%clk
0:00:14.8]} 40. Rd7+ {[%clk 0:00:03.8]} 40... Kh6 {[%clk 0:00:15.3]} 41. Rxb7
{[%clk 0:00:04.1]} 41... Qxa5 {[%clk 0:00:13.5]} 42. Rbb1 {[%clk 0:00:04.8]}
42... Qd5 {[%clk 0:00:12.9]} 43. Rh1 {[%clk 0:00:05]} 43... Kg5 {[%clk 0:00:12]}
44. Rhf1 {[%clk 0:00:03.4]} 44... e4 {[%clk 0:00:11.9]} 45. Kh2 {[%clk
0:00:03.3]} 45... Qd2+ {[%clk 0:00:11.3]} 46. Kg1 {[%clk 0:00:03.8]} 46... Qd4+
{[%clk 0:00:10]} 47. Kg2 {[%clk 0:00:04]} 47... Ne5 {[%clk 0:00:06.7]} 48. Rbe1
{[%clk 0:00:04.3]} 48... e3 {[%clk 0:00:06.8]} 49. Re2 {[%clk 0:00:02.6]} 49...
Qe4+ {[%clk 0:00:06.6]} 50. Kh3 {[%clk 0:00:02.2]} 50... Qg4+ {[%clk 0:00:05.3]}
51. Kh2 {[%clk 0:00:01.2]} 51... Qxe2+ {[%clk 0:00:06.2]} 52. Kh3 {[%clk
0:00:01.7]} 52... Qxf1+ {[%clk 0:00:06.5]} 53. Kh2 {[%clk 0:00:02.6]} 53... Qf2+
{[%clk 0:00:06.9]} 54. Kh3 {[%clk 0:00:02.1]} 54... e2 {[%clk 0:00:07.3]} 55. g4
{[%clk 0:00:02.6]} 55... Qf3+ {[%clk 0:00:06]} 56. Kh2 {[%clk 0:00:03.2]} 56...
Nxg4+ {[%clk 0:00:06.3]} 57. Kg1 {[%clk 0:00:04.1]} 57... Qf2+ {[%clk
0:00:06.6]} 58. Kh1 {[%clk 0:00:04.1]} 58... e1=Q# {[%clk 0:00:07.5]} 0-1

[Event "Early-Titled-Tuesday-Blitz-September-26-2023"]
[Site "Chess.com"]
[Date "2023.09.26"]
[Round "9"]
[White "TigrVShlyape"]
[Black "halfnatty"]
[Result "1/2-1/2"]
[WhiteElo "2945"]
[BlackElo "2760"]
[TimeControl "180+1"]
[EndTime "9:46:47 PDT"]
[Termination "Game drawn by repetition"]

1. d4 {[%clk 0:03:00.9]} 1... d5 {[%clk 0:02:59.3]} 2. Bf4 {[%clk 0:02:59]} 2...
c5 {[%clk 0:02:58]} 3. e3 {[%clk 0:02:59.1]} 3... Nc6 {[%clk 0:02:57.6]} 4. c3
{[%clk 0:02:58.6]} 4... e6 {[%clk 0:02:55.3]} 5. Nd2 {[%clk 0:02:58.1]} 5... Bd6
{[%clk 0:02:54.6]} 6. Qg4 {[%clk 0:02:50.8]} 6... Nf6 {[%clk 0:02:30.5]} 7. Qh4
{[%clk 0:02:25.4]} 7... Be7 {[%clk 0:02:23.2]} 8. Bg5 {[%clk 0:01:59.5]} 8... h6
{[%clk 0:02:11.3]} 9. Bd3 {[%clk 0:01:51.6]} 9... Rg8 {[%clk 0:01:53.6]} 10.
Bxf6 {[%clk 0:01:50.1]} 10... Bxf6 {[%clk 0:01:53.6]} 11. Qh5 {[%clk 0:01:45.8]}
11... Qb6 {[%clk 0:01:50.4]} 12. Rb1 {[%clk 0:01:40.6]} 12... Bd7 {[%clk
0:01:29]} 13. Ngf3 {[%clk 0:01:36.8]} 13... cxd4 {[%clk 0:00:54]} 14. exd4
{[%clk 0:01:31.8]} 14... Rh8 {[%clk 0:00:49]} 15. Ne5 {[%clk 0:01:13.6]} 15...
Nxe5 {[%clk 0:00:40.2]} 16. dxe5 {[%clk 0:01:12]} 16... Be7 {[%clk 0:00:39.6]}
17. O-O {[%clk 0:01:06.9]} 17... g6 {[%clk 0:00:36.2]} 18. Qh3 {[%clk
0:00:59.2]} 18... Qc7 {[%clk 0:00:31.9]} 19. Rfe1 {[%clk 0:00:54]} 19... O-O-O
{[%clk 0:00:19.2]} 20. Nb3 {[%clk 0:00:51.2]} 20... Kb8 {[%clk 0:00:18.8]} 21.
Nd4 {[%clk 0:00:47.9]} 21... Bc5 {[%clk 0:00:16.8]} 22. Qf3 {[%clk 0:00:44.6]}
22... Rdf8 {[%clk 0:00:15.5]} 23. b4 {[%clk 0:00:24.7]} 23... Bb6 {[%clk
0:00:11.8]} 24. Rbc1 {[%clk 0:00:24.9]} 24... h5 {[%clk 0:00:11.7]} 25. Qf6
{[%clk 0:00:18.3]} 25... h4 {[%clk 0:00:11.3]} 26. h3 {[%clk 0:00:17]} 26... Qd8
{[%clk 0:00:07.4]} 27. Qf4 {[%clk 0:00:14.6]} 27... Rh5 {[%clk 0:00:06]} 28. Nf3
{[%clk 0:00:13.7]} 28... Bc7 {[%clk 0:00:05]} 29. Qg4 {[%clk 0:00:13.6]} 29...
Rhh8 {[%clk 0:00:02.9]} 30. Kh1 {[%clk 0:00:13.7]} 30... Bc6 {[%clk 0:00:03]}
31. c4 {[%clk 0:00:13.3]} 31... dxc4 {[%clk 0:00:02.7]} 32. Bxc4 {[%clk
0:00:13.6]} 32... Bxf3 {[%clk 0:00:03.1]} 33. Qxf3 {[%clk 0:00:13.4]} 33... Rh5
{[%clk 0:00:02.8]} 34. Bd3 {[%clk 0:00:09.9]} 34... Qe7 {[%clk 0:00:02.3]} 35.
a3 {[%clk 0:00:08.9]} 35... Rxe5 {[%clk 0:00:02.1]} 36. Rxe5 {[%clk 0:00:08.5]}
36... Bxe5 {[%clk 0:00:03]} 37. Be4 {[%clk 0:00:08.7]} 37... f5 {[%clk
0:00:03.2]} 38. Bb1 {[%clk 0:00:08]} 38... Rd8 {[%clk 0:00:03.3]} 39. Re1 {[%clk
0:00:07.8]} 39... Bc7 {[%clk 0:00:02.3]} 40. Qe3 {[%clk 0:00:07.7]} 40... Qd6
{[%clk 0:00:02.7]} 41. f4 {[%clk 0:00:06.2]} 41... Qxf4 {[%clk 0:00:02.7]} 42.
Qxf4 {[%clk 0:00:06.6]} 42... Bxf4 {[%clk 0:00:03.6]} 43. Ba2 {[%clk 0:00:06.9]}
43... e5 {[%clk 0:00:04]} 44. Bf7 {[%clk 0:00:07.1]} 44... e4 {[%clk 0:00:04.4]}
45. Kg1 {[%clk 0:00:07.4]} 45... Bg3 {[%clk 0:00:04.7]} 46. Rb1 {[%clk
0:00:06.9]} 46... g5 {[%clk 0:00:05.1]} 47. Be6 {[%clk 0:00:06.5]} 47... Rf8
{[%clk 0:00:04.9]} 48. Bd5 {[%clk 0:00:05.6]} 48... e3 {[%clk 0:00:04.9]} 49.
Kf1 {[%clk 0:00:05.9]} 49... Re8 {[%clk 0:00:04.2]} 50. Ke2 {[%clk 0:00:05.3]}
50... f4 {[%clk 0:00:04.6]} 51. Rc1 {[%clk 0:00:04.8]} 51... Rd8 {[%clk
0:00:04.9]} 52. Rd1 {[%clk 0:00:04.6]} 52... Bf2 {[%clk 0:00:05.4]} 53. Bf3
{[%clk 0:00:04.4]} 53... Rxd1 {[%clk 0:00:05.3]} 54. Kxd1 {[%clk 0:00:04.7]}
54... b6 {[%clk 0:00:05.8]} 55. Kc2 {[%clk 0:00:05.1]} 55... Kc7 {[%clk
0:00:06.4]} 56. Kd3 {[%clk 0:00:05.5]} 56... Kd6 {[%clk 0:00:06.8]} 57. Kc4
{[%clk 0:00:06]} 57... Be1 {[%clk 0:00:06.9]} 58. a4 {[%clk 0:00:06.2]} 58...
Bd2 {[%clk 0:00:06.8]} 59. b5 {[%clk 0:00:06.6]} 59... Ke5 {[%clk 0:00:07.2]}
60. Kd3 {[%clk 0:00:06.3]} 60... Kd6 {[%clk 0:00:07.2]} 61. Kc4 {[%clk
0:00:06.7]} 61... Ba5 {[%clk 0:00:06.9]} 62. Be2 {[%clk 0:00:07]} 62... Ke5
{[%clk 0:00:06.4]} 63. Bf3 {[%clk 0:00:07.5]} 63... g4 {[%clk 0:00:06.2]} 64.
Bxg4 {[%clk 0:00:07.1]} 64... Ke4 {[%clk 0:00:06.6]} 65. Bf3+ {[%clk 0:00:07.6]}
65... Ke5 {[%clk 0:00:07.1]} 66. Kd3 {[%clk 0:00:08.1]} 66... Bd2 {[%clk
0:00:07.4]} 67. Kc4 {[%clk 0:00:08.5]} 67... Ba5 {[%clk 0:00:08]} 68. Kd3 {[%clk
0:00:08.9]} 68... Bd2 {[%clk 0:00:08.7]} 69. Kc4 {[%clk 0:00:09.4]} 69... Ba5
{[%clk 0:00:09.4]} 1/2-1/2

[Event "Early-Titled-Tuesday-Blitz-September-26-2023"]
[Site "Chess.com"]
[Date "2023.09.26"]
[Round "9"]
[White "BogdanDeac"]
[Black "Iskusnyh"]
[Result "1-0"]
[WhiteElo "2943"]
[BlackElo "2603"]
[TimeControl "180+1"]
[EndTime "9:46:47 PDT"]
[Termination "BogdanDeac won on time"]

1. d4 {[%clk 0:03:00.9]} 1... d5 {[%clk 0:02:59.7]} 2. c4 {[%clk 0:02:59.2]}
2... c6 {[%clk 0:02:59.2]} 3. Nf3 {[%clk 0:02:59.5]} 3... Nf6 {[%clk 0:02:59]}
4. Nc3 {[%clk 0:03:00.1]} 4... e6 {[%clk 0:02:57.8]} 5. Bg5 {[%clk 0:02:58.3]}
5... Nbd7 {[%clk 0:02:52]} 6. e3 {[%clk 0:02:53.8]} 6... h6 {[%clk 0:02:50.9]}
7. Bh4 {[%clk 0:02:51.6]} 7... Be7 {[%clk 0:02:48.9]} 8. Qc2 {[%clk 0:02:50.6]}
8... O-O {[%clk 0:02:42.2]} 9. Rd1 {[%clk 0:02:51]} 9... b6 {[%clk 0:02:30.7]}
10. Be2 {[%clk 0:02:21]} 10... Bb7 {[%clk 0:02:28.5]} 11. O-O {[%clk 0:02:20.7]}
11... Rc8 {[%clk 0:02:27]} 12. cxd5 {[%clk 0:02:14.4]} 12... cxd5 {[%clk
0:02:24.9]} 13. Qb3 {[%clk 0:02:14]} 13... Ne4 {[%clk 0:02:02.5]} 14. Bxe7
{[%clk 0:02:11.7]} 14... Qxe7 {[%clk 0:02:02.1]} 15. Nxe4 {[%clk 0:02:11]} 15...
dxe4 {[%clk 0:02:02.3]} 16. Nd2 {[%clk 0:02:10.7]} 16... Nf6 {[%clk 0:01:56.5]}
17. Qa4 {[%clk 0:01:58.8]} 17... Bd5 {[%clk 0:01:35.6]} 18. Rc1 {[%clk
0:01:41.9]} 18... e5 {[%clk 0:01:33.7]} 19. Nb3 {[%clk 0:01:32.7]} 19... Bxb3
{[%clk 0:01:26.8]} 20. axb3 {[%clk 0:01:32.2]} 20... exd4 {[%clk 0:01:26.1]} 21.
Qxd4 {[%clk 0:01:32.3]} 21... Rcd8 {[%clk 0:01:21.4]} 22. Qc3 {[%clk 0:01:32]}
22... Rd5 {[%clk 0:01:17.6]} 23. Rfd1 {[%clk 0:01:04.8]} 23... Rc5 {[%clk
0:01:08.1]} 24. Qd2 {[%clk 0:00:57.5]} 24... Rfc8 {[%clk 0:01:02.1]} 25. h3
{[%clk 0:00:40.7]} 25... a5 {[%clk 0:00:53.9]} 26. Bc4 {[%clk 0:00:22.7]} 26...
a4 {[%clk 0:00:37.3]} 27. Qe1 {[%clk 0:00:20.5]} 27... Qc7 {[%clk 0:00:33.6]}
28. Ra1 {[%clk 0:00:15]} 28... b5 {[%clk 0:00:33.4]} 29. Bf1 {[%clk 0:00:14.4]}
29... axb3 {[%clk 0:00:32.5]} 30. Ra3 {[%clk 0:00:14.9]} 30... b4 {[%clk
0:00:20.3]} 31. Qxb4 {[%clk 0:00:12.4]} 31... Rc2 {[%clk 0:00:18]} 32. Rxb3
{[%clk 0:00:07.7]} 32... Qe5 {[%clk 0:00:17.8]} 33. Qe1 {[%clk 0:00:02.7]} 33...
Rxb2 {[%clk 0:00:16.7]} 34. Rxb2 {[%clk 0:00:02.5]} 34... Qxb2 {[%clk
0:00:17.6]} 35. Rb1 {[%clk 0:00:02.4]} 35... Qc3 {[%clk 0:00:16.4]} 36. Qd1
{[%clk 0:00:02.1]} 36... Qc2 {[%clk 0:00:15.5]} 37. Qe1 {[%clk 0:00:02.5]} 37...
Qc3 {[%clk 0:00:15.4]} 38. Qxc3 {[%clk 0:00:02.7]} 38... Rxc3 {[%clk 0:00:14.9]}
39. Rb8+ {[%clk 0:00:03.4]} 39... Kh7 {[%clk 0:00:14.2]} 40. g4 {[%clk 0:00:04]}
40... Rc7 {[%clk 0:00:13.9]} 41. Kg2 {[%clk 0:00:03.5]} 41... g5 {[%clk
0:00:14.1]} 42. Rb6 {[%clk 0:00:03]} 42... Kg7 {[%clk 0:00:13.9]} 43. Rd6 {[%clk
0:00:03.7]} 43... Re7 {[%clk 0:00:13.7]} 44. Bc4 {[%clk 0:00:02.9]} 44... Ne8
{[%clk 0:00:12]} 45. Rd4 {[%clk 0:00:02.9]} 45... Nf6 {[%clk 0:00:11.9]} 46. Kg3
{[%clk 0:00:03.4]} 46... Nh7 {[%clk 0:00:11.6]} 47. Bd5 {[%clk 0:00:03.2]} 47...
Nf6 {[%clk 0:00:11.8]} 48. Bb3 {[%clk 0:00:03.6]} 48... Rb7 {[%clk 0:00:11.6]}
49. Bc2 {[%clk 0:00:03.8]} 49... Re7 {[%clk 0:00:11.4]} 50. h4 {[%clk
0:00:03.7]} 50... Re8 {[%clk 0:00:10.6]} 51. hxg5 {[%clk 0:00:03.8]} 51... hxg5
{[%clk 0:00:10.2]} 52. Rc4 {[%clk 0:00:04.4]} 52... Re7 {[%clk 0:00:09.7]} 53.
Rc5 {[%clk 0:00:04.6]} 53... Kg6 {[%clk 0:00:09.9]} 54. f4 {[%clk 0:00:03.6]}
54... Nh7 {[%clk 0:00:06.2]} 55. Rc6+ {[%clk 0:00:02.9]} 55... Kg7 {[%clk
0:00:06]} 56. Rc5 {[%clk 0:00:03]} 56... gxf4+ {[%clk 0:00:05.4]} 57. Kxf4
{[%clk 0:00:03.3]} 57... Nf6 {[%clk 0:00:04.9]} 58. g5 {[%clk 0:00:03.1]} 58...
Ne8 {[%clk 0:00:03.2]} 59. Bxe4 {[%clk 0:00:02.9]} 59... Nd6 {[%clk 0:00:02.5]}
60. Bd5 {[%clk 0:00:02.9]} 60... Ne8 {[%clk 0:00:02]} 61. e4 {[%clk 0:00:03.1]}
61... f6 {[%clk 0:00:01.8]} 62. Kf5 {[%clk 0:00:02.6]} 62... fxg5 {[%clk
0:00:01.5]} 63. Kxg5 {[%clk 0:00:03.5]} 63... Nd6 {[%clk 0:00:01.1]} 64. Kf4
{[%clk 0:00:03.7]} 1-0

[Event "Early-Titled-Tuesday-Blitz-September-26-2023"]
[Site "Chess.com"]
[Date "2023.09.26"]
[Round "9"]
[White "BlueWizzard"]
[Black "Zurability"]
[Result "1/2-1/2"]
[WhiteElo "2913"]
[BlackElo "2758"]
[TimeControl "180+1"]
[EndTime "9:46:48 PDT"]
[Termination "Game drawn by repetition"]

1. d4 {[%clk 0:03:00.9]} 1... Nf6 {[%clk 0:02:42.4]} 2. g3 {[%clk 0:03:00.7]}
2... e6 {[%clk 0:02:32.5]} 3. Bg2 {[%clk 0:02:58.8]} 3... c5 {[%clk 0:02:32.2]}
4. Nf3 {[%clk 0:02:53.1]} 4... Nc6 {[%clk 0:02:28.3]} 5. O-O {[%clk 0:02:53]}
5... d5 {[%clk 0:02:26.9]} 6. c4 {[%clk 0:02:45.9]} 6... dxc4 {[%clk 0:02:27]}
7. Na3 {[%clk 0:02:45]} 7... cxd4 {[%clk 0:02:24.2]} 8. Nxc4 {[%clk 0:02:45.3]}
8... Be7 {[%clk 0:02:24.4]} 9. b3 {[%clk 0:02:44.5]} 9... Nd5 {[%clk 0:02:09.8]}
10. Bb2 {[%clk 0:02:39]} 10... Nc3 {[%clk 0:02:04.4]} 11. Qc2 {[%clk 0:02:25.8]}
11... O-O {[%clk 0:01:53.4]} 12. e3 {[%clk 0:02:14.7]} 12... Bf6 {[%clk
0:01:49.8]} 13. exd4 {[%clk 0:02:02.8]} 13... Nd5 {[%clk 0:01:44.9]} 14. Qd2
{[%clk 0:01:53.5]} 14... b6 {[%clk 0:01:41.8]} 15. Rac1 {[%clk 0:01:45.9]} 15...
Bb7 {[%clk 0:01:41.7]} 16. Rfe1 {[%clk 0:01:45.9]} 16... Rc8 {[%clk 0:01:40.7]}
17. h4 {[%clk 0:01:46.3]} 17... h6 {[%clk 0:01:29.4]} 18. Nh2 {[%clk 0:01:42.8]}
18... h5 {[%clk 0:01:18.6]} 19. Nf3 {[%clk 0:01:37.4]} 19... g6 {[%clk
0:01:18.6]} 20. Rcd1 {[%clk 0:01:33.4]} 20... Nce7 {[%clk 0:01:13.8]} 21. Ba3
{[%clk 0:01:32.9]} 21... Ba6 {[%clk 0:01:10.1]} 22. Nfe5 {[%clk 0:01:28.7]}
22... b5 {[%clk 0:00:57.4]} 23. Nd6 {[%clk 0:01:20.2]} 23... Rc7 {[%clk
0:00:55.4]} 24. Nexf7 {[%clk 0:01:01.4]} 24... Rxf7 {[%clk 0:00:51.4]} 25. Rxe6
{[%clk 0:00:59.3]} 25... Rf8 {[%clk 0:00:35.6]} 26. Ne4 {[%clk 0:00:52.9]} 26...
Bc8 {[%clk 0:00:35.4]} 27. Rd6 {[%clk 0:00:41.6]} 27... Rd7 {[%clk 0:00:28.3]}
28. Bc5 {[%clk 0:00:40]} 28... Rxd6 {[%clk 0:00:23.5]} 29. Nxd6 {[%clk
0:00:40.9]} 29... Bg4 {[%clk 0:00:19.9]} 30. Re1 {[%clk 0:00:38.3]} 30... Nc7
{[%clk 0:00:16.8]} 31. Qd3 {[%clk 0:00:28.6]} 31... Ne6 {[%clk 0:00:14.7]} 32.
Qxb5 {[%clk 0:00:25.5]} 32... Kh7 {[%clk 0:00:08.9]} 33. Qb7 {[%clk 0:00:21]}
33... Nxd4 {[%clk 0:00:07.3]} 34. Bxd4 {[%clk 0:00:20]} 34... Qxd6 {[%clk
0:00:04]} 35. Bxf6 {[%clk 0:00:20]} 35... Qxf6 {[%clk 0:00:03.1]} 36. Qxe7+
{[%clk 0:00:18.9]} 36... Qxe7 {[%clk 0:00:03]} 37. Rxe7+ {[%clk 0:00:19.8]}
37... Kh6 {[%clk 0:00:03.7]} 38. Rxa7 {[%clk 0:00:19.8]} 38... Rd8 {[%clk
0:00:04.3]} 39. Be4 {[%clk 0:00:17.4]} 39... Rd2 {[%clk 0:00:02.6]} 40. Ra6
{[%clk 0:00:15.1]} 40... Re2 {[%clk 0:00:02.4]} 41. Bxg6 {[%clk 0:00:13]} 41...
Kg7 {[%clk 0:00:03]} 42. Kg2 {[%clk 0:00:12]} 42... Rd2 {[%clk 0:00:02.9]} 43.
Be4 {[%clk 0:00:11.6]} 43... Be2 {[%clk 0:00:02.4]} 44. Bf3 {[%clk 0:00:11.5]}
44... Bxa6 {[%clk 0:00:02.4]} 45. a4 {[%clk 0:00:11.8]} 45... Rb2 {[%clk
0:00:02.8]} 46. Bd5 {[%clk 0:00:10.9]} 46... Bd3 {[%clk 0:00:03.5]} 47. Kf3
{[%clk 0:00:11.1]} 47... Bc2 {[%clk 0:00:03.8]} 48. a5 {[%clk 0:00:10.7]} 48...
Bxb3 {[%clk 0:00:04.2]} 49. Be4 {[%clk 0:00:11.2]} 49... Ra2 {[%clk 0:00:04.6]}
50. Kf4 {[%clk 0:00:11.2]} 50... Rxa5 {[%clk 0:00:05.2]} 51. Bf3 {[%clk
0:00:11.7]} 51... Bf7 {[%clk 0:00:05.2]} 52. Ke3 {[%clk 0:00:11.9]} 52... Bg6
{[%clk 0:00:05.8]} 53. Bg2 {[%clk 0:00:12.3]} 53... Ra3+ {[%clk 0:00:06.5]} 54.
Kf4 {[%clk 0:00:12.7]} 54... Kf6 {[%clk 0:00:07.4]} 55. Bh1 {[%clk 0:00:12.1]}
55... Ra4+ {[%clk 0:00:07.9]} 56. Ke3 {[%clk 0:00:12.3]} 56... Ke5 {[%clk
0:00:08.5]} 57. Bg2 {[%clk 0:00:12.6]} 57... Ra3+ {[%clk 0:00:08.9]} 58. Ke2
{[%clk 0:00:13.1]} 58... Kd4 {[%clk 0:00:09.5]} 59. Bh3 {[%clk 0:00:12.9]} 59...
Bd3+ {[%clk 0:00:10.1]} 60. Kf3 {[%clk 0:00:13.4]} 60... Be4+ {[%clk 0:00:10.6]}
61. Kf4 {[%clk 0:00:13.9]} 61... Rf3+ {[%clk 0:00:11.2]} 62. Kg5 {[%clk
0:00:14.6]} 62... Rxf2 {[%clk 0:00:11.9]} 63. Kxh5 {[%clk 0:00:15.3]} 63... Ke5
{[%clk 0:00:12.5]} 64. Bd7 {[%clk 0:00:14.9]} 64... Rg2 {[%clk 0:00:12.4]} 65.
g4 {[%clk 0:00:15.2]} 65... Kf4 {[%clk 0:00:12.7]} 66. g5 {[%clk 0:00:15.1]}
66... Bf5 {[%clk 0:00:11.6]} 67. Be8 {[%clk 0:00:11.9]} 67... Rh2 {[%clk
0:00:11.1]} 68. g6 {[%clk 0:00:12]} 68... Rg2 {[%clk 0:00:08.5]} 69. Kh6 {[%clk
0:00:12]} 69... Ke5 {[%clk 0:00:08.9]} 70. Kg7 {[%clk 0:00:11.7]} 70... Ke6
{[%clk 0:00:07.7]} 71. h5 {[%clk 0:00:11.6]} 71... Ke7 {[%clk 0:00:07.7]} 72.
Bf7 {[%clk 0:00:11.9]} 72... Be6 {[%clk 0:00:07.7]} 73. Bxe6 {[%clk 0:00:11.6]}
73... Kxe6 {[%clk 0:00:08.2]} 74. h6 {[%clk 0:00:12.5]} 74... Kf5 {[%clk
0:00:08.8]} 75. h7 {[%clk 0:00:12.5]} 75... Rxg6+ {[%clk 0:00:09.5]} 76. Kf7
{[%clk 0:00:13]} 76... Rh6 {[%clk 0:00:09.1]} 77. Kg7 {[%clk 0:00:13.9]} 77...
Rg6+ {[%clk 0:00:09.5]} 78. Kf7 {[%clk 0:00:14.3]} 78... Rf6+ {[%clk 0:00:09.2]}
79. Kg7 {[%clk 0:00:15.2]} 79... Rg6+ {[%clk 0:00:05.3]} 1/2-1/2